fUSD/lending_fUSD_20250611
["ID","MTS","AMOUNT","RATE_DAILY","PERIOD"]
[365335110,1749605441165,-490.0,0.00016438,2]
[365335111,1749605441175,-370.0,0.00016438,2]
[365335112,1749605441184,-151.62156555,0.00016438,2]
[365335113,1749605441193,-490.0,0.00016438,2]
[365335115,1749605441203,-490.0,0.00016438,2]
[365335117,1749605441212,-490.0,0.00016438,2]
[365335118,1749605441221,-300.0,0.00016438,2]
[365335120,1749605441230,-490.0,0.00016438,2]
[365335122,1749605441239,-428.36,0.00016438,2]
[365335124,1749605441249,-480.0,0.00016438,2]
[365335126,1749605441258,-490.0,0.00016438,2]
[365335128,1749605441268,-490.0,0.00016438,2]
[365335130,1749605441278,-480.0,0.00016438,2]
[365335132,1749605441287,-430.0,0.00016438,2]
[365335135,1749605441297,-490.0,0.00016438,2]
[365335136,1749605441306,-490.0,0.00016438,2]
[365335138,1749605441315,-620.21,0.00016438,2]
[365335141,1749605441325,-490.0,0.00016438,2]
[365335142,1749605441334,-490.0,0.00016438,2]
[365335144,1749605441343,-490.0,0.00016438,2]
[365335146,1749605441353,-490.0,0.00016438,2]
[365335148,1749605441362,-490.0,0.00016438,2]
[365335150,1749605441372,-490.0,0.00016438,2]
[365335152,1749605441381,-490.0,0.00016438,2]
[365335154,1749605441390,-480.0,0.00016438,2]
[365335156,1749605441399,-360.0,0.00016438,2]
[365335158,1749605441409,-490.0,0.00016438,2]
[365335160,1749605441419,-430.0,0.00016438,2]
[365335162,1749605441428,-480.0,0.00016438,2]
[365335164,1749605441437,-430.0,0.00016438,2]
[365335166,1749605441446,-490.0,0.00016438,2]
[365335168,1749605441455,-480.0,0.00016438,2]
[365335170,1749605441465,-490.0,0.00016438,2]
[365335172,1749605441474,-490.0,0.00016438,2]
[365335174,1749605441484,-490.0,0.00016438,2]
[365335176,1749605441494,-490.0,0.00016438,2]
[365335178,1749605441503,-490.0,0.00016438,2]
[365335180,1749605441513,-469.52709805,0.00016438,2]
[365335182,1749605441522,-480.0,0.00016438,2]
[365335184,1749605441532,-490.0,0.00016438,2]
[365335186,1749605441541,-490.0,0.00016438,2]
[365335188,1749605441550,-215.72531159,0.00016438,2]
[365335190,1749605441560,-480.0,0.00016438,2]
[365335192,1749605441570,-490.0,0.00016438,2]
[365335195,1749605441579,-480.0,0.00016438,2]
[365335197,1749605441588,-490.0,0.00016438,2]
[365335198,1749605441597,-370.26,0.00016438,2]
[365335200,1749605441606,-490.0,0.00016438,2]
[365335202,1749605441616,-490.0,0.00016438,2]
[365335205,1749605441626,-490.0,0.00016438,2]
[365335207,1749605441635,-430.0,0.00016438,2]
[365335209,1749605441645,-490.0,0.00016438,2]
[365335211,1749605441655,-490.0,0.00016438,2]
[365335213,1749605441666,-480.0,0.00016438,2]
[365335215,1749605441680,-460.0,0.00016438,2]
[365335217,1749605441689,-430.0,0.00016438,2]
[365335218,1749605441698,-450.0,0.00016438,2]
[365335220,1749605441707,-490.0,0.00016438,2]
[365335222,1749605441716,-490.0,0.00016438,2]
[365335224,1749605441725,-598.59,0.00016438,2]
[365335226,1749605441734,-420.0,0.00016438,2]
[365335228,1749605441744,-480.0,0.00016438,2]
[365335230,1749605441754,-470.0,0.00016438,2]
[365335232,1749605441763,-490.0,0.00016438,2]
[365335234,1749605441773,-490.0,0.00016438,2]
[365335236,1749605441782,-480.0,0.00016438,2]
[365335238,1749605441792,-490.0,0.00016438,2]
[365335240,1749605441801,-480.0,0.00016438,2]
[365335242,1749605441811,-480.0,0.00016438,2]
[365335244,1749605441821,-480.0,0.00016438,2]
[365335246,1749605441831,-490.0,0.00016438,2]
[365335248,1749605441840,-490.0,0.00016438,2]
[365335250,1749605441850,-490.0,0.00016438,2]
[365335252,1749605441859,-480.0,0.00016438,2]
[365335254,1749605441868,-546.33641606,0.00016438,2]
[365335256,1749605441878,-480.0,0.00016438,2]
[365335258,1749605441887,-490.0,0.00016438,2]
[365335260,1749605441897,-460.0,0.00016438,2]
[365335262,1749605441907,-363.02770547,0.00016438,2]
[365335264,1749605441918,-573.24,0.00016438,2]
[365335266,1749605441932,-490.0,0.00016438,2]
[365335268,1749605441941,-597.92,0.00016438,2]
[365335270,1749605441951,-460.0,0.00016438,2]
[365335272,1749605441960,-490.0,0.00016438,2]
[365335274,1749605441970,-490.0,0.00016438,2]
[365335276,1749605441979,-490.0,0.00016438,2]
[365335278,1749605441989,-490.0,0.00016438,2]
[365335281,1749605442000,-490.0,0.00016438,2]
[365335283,1749605442009,-460.0,0.00016438,2]
[365335285,1749605442020,-480.0,0.00016438,2]
[365335287,1749605442029,-621.7,0.00016438,2]
[365335289,1749605442039,-490.0,0.00016438,2]
[365335291,1749605442048,-490.0,0.00016438,2]
[365335292,1749605442057,-480.0,0.00016438,2]
[365335294,1749605442067,-511.44,0.00016438,2]
[365335297,1749605442077,-490.0,0.00016438,2]
[365335299,1749605442087,-460.0,0.00016438,2]
[365335300,1749605442095,-480.0,0.00016438,2]
[365335302,1749605442105,-490.0,0.00016438,2]
[365335304,1749605442114,-490.0,0.00016438,2]
[365335306,1749605442123,-490.0,0.00016438,2]
[365335308,1749605442133,-460.85620028,0.00016438,2]
[365335310,1749605442142,-460.0,0.00016438,2]
[365335312,1749605442150,-460.0,0.00016438,2]
[365335314,1749605442159,-460.0,0.00016438,2]
[365335316,1749605442168,-490.0,0.00016438,2]
[365335318,1749605442178,-490.0,0.00016438,2]
[365335320,1749605442187,-490.0,0.00016438,2]
[365335322,1749605442196,-480.0,0.00016438,2]
[365335324,1749605442205,-490.0,0.00016438,2]
[365335326,1749605442214,-490.0,0.00016438,2]
[365335328,1749605442224,-490.0,0.00016438,2]
[365335330,1749605442233,-490.0,0.00016438,2]
[365335332,1749605442242,-460.0,0.00016438,2]
[365335334,1749605442252,-490.0,0.00016438,2]
[365335336,1749605442261,-490.0,0.00016438,2]
[365335338,1749605442270,-464.99519901,0.00016438,2]
[365335340,1749605442280,-490.0,0.00016438,2]
[365335342,1749605442289,-460.0,0.00016438,2]
[365335344,1749605442298,-490.0,0.00016438,2]
[365335346,1749605442308,-560.0,0.00016438,2]
[365335348,1749605442317,-615.04,0.00016438,2]
[365335350,1749605442326,-420.0,0.00016438,2]
[365335352,1749605442336,-480.0,0.00016438,2]
[365335354,1749605442345,-490.0,0.00016438,2]
[365335356,1749605442354,-490.0,0.00016438,2]
[365335358,1749605442363,-460.0,0.00016438,2]
[365335360,1749605442372,-501.57086195,0.00016438,2]
[365335362,1749605442381,-460.0,0.00016438,2]
[365335364,1749605442390,-480.0,0.00016438,2]
[365335366,1749605442399,-490.0,0.00016438,2]
[365335368,1749605442408,-342.62197998,0.00016438,2]
[365335370,1749605442419,-460.0,0.00016438,2]
[365335372,1749605442428,-480.0,0.00016438,2]
[365335374,1749605442437,-480.0,0.00016438,2]
[365335376,1749605442446,-490.0,0.00016438,2]
[365335378,1749605442455,-480.0,0.00016438,2]
[365335380,1749605442465,-490.0,0.00016438,2]
[365335381,1749605442474,-612.26,0.00016438,2]
[365335382,1749605442483,-348.11,0.00016438,2]
[365335383,1749605442493,-460.0,0.00016438,2]
[365335384,1749605442502,-480.0,0.00016438,2]
[365335385,1749605442511,-490.0,0.00016438,2]
[365335387,1749605442520,-460.0,0.00016438,2]
[365335389,1749605442529,-490.0,0.00016438,2]
[365335391,1749605442538,-480.0,0.00016438,2]
[365335392,1749605442548,-460.0,0.00016438,2]
[365335393,1749605442557,-351.49701578,0.00016438,2]
[365335394,1749605442566,-460.0,0.00016438,2]
[365335395,1749605442576,-490.0,0.00016438,2]
[365335396,1749605442585,-460.0,0.00016438,2]
[365335397,1749605442594,-480.0,0.00016438,2]
[365335399,1749605442603,-490.0,0.00016438,2]
[365335401,1749605442612,-480.0,0.00016438,2]
[365335402,1749605442621,-556.43,0.00016438,2]
[365335403,1749605442631,-380.0,0.00016438,2]
[365335404,1749605442640,-423.2119947,0.00016438,2]
[365335405,1749605442650,-480.0,0.00016438,2]
[365335406,1749605442660,-460.0,0.00016438,2]
[365335407,1749605442669,-490.0,0.00016438,2]
[365335408,1749605442679,-460.0,0.00016438,2]
[365335409,1749605442689,-536.67,0.00016438,2]
[365335410,1749605442698,-480.0,0.00016438,2]
[365335411,1749605442708,-460.0,0.00016438,2]
[365335412,1749605442717,-302.70841305,0.00016438,2]
[365335413,1749605442727,-490.0,0.00016438,2]
[365335414,1749605442736,-460.0,0.00016438,2]
[365335415,1749605442746,-511.77681684,0.00016438,2]
[365335416,1749605442755,-480.0,0.00016438,2]
[365335417,1749605442764,-460.0,0.00016438,2]
[365335418,1749605442773,-460.0,0.00016438,2]
[365335420,1749605442783,-503.62,0.00016438,2]
[365335421,1749605442795,-353.18861158,0.00016438,2]
[365335422,1749605442808,-490.0,0.00016438,2]
[365335423,1749605442818,-490.0,0.00016438,2]
[365335424,1749605442828,-460.0,0.00016438,2]
[365335425,1749605442838,-460.0,0.00016438,2]
[365335426,1749605442848,-530.39,0.00016438,2]
[365335428,1749605442860,-410.13943041,0.00016438,2]
[365335429,1749605442870,-490.0,0.00016438,2]
[365335431,1749605442880,-490.0,0.00016438,2]
[365335433,1749605442889,-460.0,0.00016438,2]
[365335434,1749605442899,-460.0,0.00016438,2]
[365335435,1749605442908,-490.0,0.00016438,2]
[365335436,1749605442919,-460.0,0.00016438,2]
[365335437,1749605442933,-380.0,0.00016438,2]
[365335438,1749605442943,-460.0,0.00016438,2]
[365335439,1749605442953,-480.0,0.00016438,2]
[365335440,1749605442964,-460.0,0.00016438,2]
[365335441,1749605442973,-460.0,0.00016438,2]
[365335442,1749605442984,-490.0,0.00016438,2]
[365335443,1749605442994,-490.0,0.00016438,2]
[365335444,1749605443005,-460.0,0.00016438,2]
[365335445,1749605443015,-547.22,0.00016438,2]
[365335446,1749605443024,-333.57979117,0.00016438,2]
[365335447,1749605443034,-460.0,0.00016438,2]
[365335448,1749605443044,-490.0,0.00016438,2]
[365335449,1749605443054,-490.0,0.00016438,2]
[365335450,1749605443064,-895.27,0.00016438,2]
[365335451,1749605443074,-490.0,0.00016438,2]
[365335452,1749605443084,-460.0,0.00016438,2]
[365335453,1749605443095,-490.0,0.00016438,2]
[365335454,1749605443104,-490.0,0.00016438,2]
[365335455,1749605443114,-270.17979903,0.00016438,2]
[365335456,1749605443124,-460.0,0.00016438,2]
[365335457,1749605443134,-440.05360123,0.00016438,2]
[365335458,1749605443143,-460.0,0.00016438,2]
[365335459,1749605443153,-1068.268683,0.00016438,2]
[365335460,1749605443163,-490.0,0.00016438,2]
[365335461,1749605443173,-460.0,0.00016438,2]
[365335462,1749605443183,-460.0,0.00016438,2]
[365335463,1749605443193,-490.0,0.00016438,2]
[365335464,1749605443202,-460.0,0.00016438,2]
[365335465,1749605443212,-490.0,0.00016438,2]
[365335466,1749605443221,-490.0,0.00016438,2]
[365335467,1749605443231,-460.0,0.00016438,2]
[365335468,1749605443241,-490.0,0.00016438,2]
[365335469,1749605443250,-490.0,0.00016438,2]
[365335470,1749605443259,-460.0,0.00016438,2]
[365335471,1749605443269,-1094.07,0.00016438,2]
[365335472,1749605443279,-460.0,0.00016438,2]
[365335473,1749605443288,-490.0,0.00016438,2]
[365335474,1749605443298,-502.91062017,0.00016438,2]
[365335475,1749605443307,-466.99092637,0.00016438,2]
[365335476,1749605443317,-490.0,0.00016438,2]
[365335477,1749605443326,-490.0,0.00016438,2]
[365335478,1749605443335,-490.0,0.00016438,2]
[365335479,1749605443345,-504.25479602,0.00016438,2]
[365335480,1749605443354,-314.63197804,0.00016438,2]
[365335481,1749605443364,-461.32270029,0.00016438,2]
[365335482,1749605443373,-695.39,0.00016438,2]
[365335483,1749605443383,-490.0,0.00016438,2]
[365335484,1749605443392,-490.0,0.00016438,2]
[365335485,1749605443402,-490.0,0.00016438,2]
[365335486,1749605443412,-490.0,0.00016438,2]
[365335487,1749605443421,-490.0,0.00016438,2]
[365335488,1749605443431,-422.84047005,0.00016438,2]
[365335489,1749605443440,-490.0,0.00016438,2]
[365335490,1749605443450,-490.0,0.00016438,2]
[365335491,1749605443459,-386.11316491,0.00016438,2]
[365335492,1749605443469,-472.4215541,0.00016438,2]
[365335493,1749605443479,-2330.211039,0.00016438,2]
[365335494,1749605443489,-490.0,0.00016438,2]
[365335495,1749605443499,-490.0,0.00016438,2]
[365335496,1749605443508,-490.0,0.00016438,2]
[365335497,1749605443517,-490.0,0.00016438,2]
[365335498,1749605443526,-467.15798734,0.00016438,2]
[365335500,1749605443536,-490.0,0.00016438,2]
[365335502,1749605443545,-490.0,0.00016438,2]
[365335504,1749605443554,-461.84477004,0.00016438,2]
[365335506,1749605443564,-467.65001554,0.00016438,2]
[365335508,1749605443574,-490.0,0.00016438,2]
[365335510,1749605443585,-490.0,0.00016438,2]
[365335512,1749605443594,-590.12369345,0.00016438,2]
[365335514,1749605443604,-490.0,0.00016438,2]
[365335516,1749605443613,-490.0,0.00016438,2]
[365335518,1749605443623,-163.124825,0.00016438,2]
[365335520,1749605443632,-463.42094285,0.00016438,2]
[365335522,1749605443641,-490.0,0.00016438,2]
[365335524,1749605443650,-490.0,0.00016438,2]
[365335526,1749605443661,-392.68774052,0.00016438,2]
[365335528,1749605443671,-490.0,0.00016438,2]
[365335530,1749605443680,-475.25504677,0.00016438,2]
[365335532,1749605443689,-490.0,0.00016438,2]
[365335533,1749605443698,-466.8883911,0.00016438,2]
[365335535,1749605443707,-464.03026816,0.00016438,2]
[365335537,1749605443717,-530.2094716,0.00016438,2]
[365335539,1749605443727,-490.0,0.00016438,2]
[365335540,1749605443736,-490.21509439,0.00016438,2]
[365335541,1749605443745,-474.77758088,0.00016438,2]
[365335542,1749605443755,-490.0,0.00016438,2]
[365335543,1749605443764,-519.49165931,0.00016438,2]
[365335544,1749605443773,-466.34848676,0.00016438,2]
[365335545,1749605443783,-239.73117147,0.00016438,2]
[365335546,1749605443793,-469.8647472,0.00016438,2]
[365335547,1749605443803,-490.0,0.00016438,2]
[365335548,1749605443812,-150.70260472,0.00016493,2]
[365335549,1749605443822,-500.0,0.00016601,2]
[365335550,1749605443831,-450.0,0.00016602,2]
[365335551,1749605443841,-163.36,0.00016602,2]
[365335552,1749605443850,-610.6,0.00016602,2]
[365335553,1749605443860,-440.0,0.00016602,2]
[365335554,1749605443869,-490.0,0.00016602,2]
[365335555,1749605443878,-490.0,0.00016602,2]
[365335556,1749605443888,-490.0,0.00016602,2]
[365335557,1749605443897,-490.0,0.00016602,2]
[365335558,1749605443906,-490.0,0.00016602,2]
[365335559,1749605443917,-440.0,0.00016602,2]
[365335560,1749605443930,-490.0,0.00016602,2]
[365335561,1749605443940,-634.36,0.00016602,2]
[365335562,1749605443949,-440.0,0.00016602,2]
[365335563,1749605443959,-578.84,0.00016602,2]
[365335564,1749605443970,-445.94,0.00016602,2]
[365335565,1749605443979,-588.26,0.00016602,2]
[365335566,1749605443997,-320.0,0.00016602,2]
[365335567,1749605444009,-172.67,0.00016602,2]
[365335568,1749605444019,-490.0,0.00016602,2]
[365335569,1749605444029,-389.02,0.00016602,2]
[365335570,1749605444039,-490.0,0.00016602,2]
[365335571,1749605444049,-490.0,0.00016602,2]
[365335572,1749605444059,-412.11,0.00016602,2]
[365335573,1749605444069,-151.53591845,0.00016602,2]
[365335574,1749605444312,-200.35408155,0.00016602,2]
[365335575,1749605444321,-409.61,0.00016602,2]
[365335576,1749605444331,-343.97,0.00016602,2]
[365335577,1749605444340,-311.1,0.00016602,2]
[365335578,1749605444350,-161.44,0.00016602,2]
[365335579,1749605444360,-490.0,0.00016602,2]
[365335580,1749605444369,-430.31,0.00016602,2]
[365335581,1749605444378,-316.48,0.00016602,2]
[365335582,1749605444388,-490.0,0.00016602,2]
[365335583,1749605444397,-514.72,0.00016602,2]
[365335584,1749605444406,-261.4349851,0.00016602,2]
[365335585,1749605444418,-490.0,0.00016602,2]
[365335586,1749605444429,-383.28,0.00016602,2]
[365335587,1749605444438,-490.0,0.00016602,2]
[365335588,1749605444448,-636.50169057,0.00016602,2]
[365335589,1749605444458,-457.33,0.00016602,2]
[365335590,1749605444467,-490.0,0.00016602,2]
[365335591,1749605444477,-490.0,0.00016602,2]
[365335592,1749605444487,-490.0,0.00016602,2]
[365335593,1749605444496,-490.0,0.00016602,2]
[365335594,1749605444506,-250.0,0.00016602,2]
[365335595,1749605444516,-490.0,0.00016602,2]
[365335596,1749605444525,-490.0,0.00016602,2]
[365335597,1749605444534,-490.0,0.00016602,2]
[365335598,1749605444544,-490.0,0.00016602,2]
[365335599,1749605444553,-490.0,0.00016602,2]
[365335600,1749605444563,-490.0,0.00016602,2]
[365335601,1749605444573,-490.0,0.00016602,2]
[365335602,1749605444583,-621.22,0.00016602,2]
[365335603,1749605444593,-490.0,0.00016602,2]
[365335604,1749605444602,-490.0,0.00016602,2]
[365335605,1749605444612,-490.0,0.00016602,2]
[365335606,1749605444622,-490.0,0.00016602,2]
[365335607,1749605444631,-613.48524091,0.00016602,2]
[365335608,1749605444641,-490.0,0.00016602,2]
[365335609,1749605444651,-490.0,0.00016602,2]
[365335610,1749605444660,-490.0,0.00016602,2]
[365335611,1749605444674,-490.0,0.00016602,2]
[365335612,1749605444683,-182.14812413,0.00016602,2]
[365335613,1749605444695,-307.85187587,0.00016602,2]
[365335614,1749605444705,-490.0,0.00016602,2]
[365335615,1749605444715,-490.0,0.00016602,2]
[365335616,1749605444725,-93.4321086,0.00016602,2]
[365335617,1749605444736,-396.5678914,0.00016602,2]
[365335618,1749605444746,-476.72285958,0.00016602,2]
[365335619,1749605444755,-490.0,0.00016602,2]
[365335620,1749605444765,-490.0,0.00016602,2]
[365335621,1749605444774,-163.55,0.00016602,2]
[365335622,1749605444783,-490.0,0.00016602,2]
[365335623,1749605444792,-490.0,0.00016602,2]
[365335624,1749605444802,-314.15,0.00016602,2]
[365335625,1749605444811,-490.0,0.00016602,2]
[365335626,1749605444820,-490.0,0.00016602,2]
[365335627,1749605444829,-490.0,0.00016602,2]
[365335628,1749605444839,-490.0,0.00016602,2]
[365335629,1749605444848,-333.14,0.00016602,2]
[365335630,1749605444857,-490.0,0.00016602,2]
[365335631,1749605444866,-490.0,0.00016602,2]
[365335632,1749605444875,-490.0,0.00016602,2]
[365335633,1749605444884,-490.0,0.00016602,2]
[365335634,1749605444894,-490.0,0.00016602,2]
[365335635,1749605444903,-490.0,0.00016602,2]
[365335636,1749605444915,-490.0,0.00016602,2]
[365335637,1749605444925,-468.20740908,0.00016602,2]
[365335638,1749605444935,-538.66503677,0.00016602,2]
[365335639,1749605445137,-490.0,0.00016602,2]
[365335640,1749605445146,-490.0,0.00016602,2]
[365335641,1749605445155,-83.3968032,0.00016602,2]
[365335642,1749605445167,-406.6031968,0.00016602,2]
[365335643,1749605445177,-490.0,0.00016602,2]
[365335644,1749605445186,-490.0,0.00016602,2]
[365335645,1749605445195,-490.0,0.00016602,2]
[365335646,1749605445204,-490.0,0.00016602,2]
[365335647,1749605445214,-490.0,0.00016602,2]
[365335648,1749605445224,-220.91075356,0.00016602,2]
[365335649,1749605445234,-490.0,0.00016602,2]
[365335650,1749605445244,-360.0,0.00016602,2]
[365335651,1749605445253,-450.0,0.00016602,2]
[365335652,1749605445262,-450.0,0.00016602,2]
[365335653,1749605445271,-420.0,0.00016602,2]
[365335654,1749605445280,-420.0,0.00016602,2]
[365335655,1749605445289,-300.0,0.00016602,2]
[365335656,1749605445298,-504.92,0.00016602,2]
[365335657,1749605445307,-639.48,0.00016602,2]
[365335658,1749605445316,-420.0,0.00016602,2]
[365335659,1749605445325,-490.0,0.00016602,2]
[365335660,1749605445334,-293.68,0.00016602,2]
[365335661,1749605445342,-490.0,0.00016602,2]
[365335662,1749605445353,-420.0,0.00016602,2]
[365335663,1749605445362,-450.0,0.00016602,2]
[365335664,1749605445372,-420.0,0.00016602,2]
[365335665,1749605445382,-427.8,0.00016602,2]
[365335666,1749605445392,-490.0,0.00016602,2]
[365335667,1749605445402,-420.0,0.00016602,2]
[365335668,1749605445411,-420.0,0.00016602,2]
[365335669,1749605445422,-420.0,0.00016602,2]
[365335670,1749605445431,-490.0,0.00016602,2]
[365335671,1749605445440,-420.0,0.00016602,2]
[365335672,1749605445449,-150.84,0.00016602,2]
[365335673,1749605445458,-174.1,0.00016602,2]
[365335674,1749605445467,-490.0,0.00016602,2]
[365335675,1749605445476,-240.0,0.00016602,2]
[365335676,1749605445485,-490.0,0.00016602,2]
[365335677,1749605445494,-420.0,0.00016602,2]
[365335678,1749605445504,-450.0,0.00016602,2]
[365335679,1749605445514,-636.31,0.00016602,2]
[365335680,1749605445523,-450.0,0.00016602,2]
[365335681,1749605445532,-490.0,0.00016602,2]
[365335682,1749605445542,-419.46244964,0.00016602,2]
[365335683,1749605445583,-30.53755036,0.00016602,2]
[365335684,1749605445591,-450.0,0.00016602,2]
[365335685,1749605445601,-450.0,0.00016602,2]
[365335686,1749605445610,-618.05,0.00016602,2]
[365335687,1749605445619,-406.57,0.00016602,2]
[365335688,1749605445629,-490.0,0.00016602,2]
[365335689,1749605445639,-152.1254882,0.00016602,2]
[365335690,1749605445648,-450.0,0.00016602,2]
[365335691,1749605445658,-490.0,0.00016602,2]
[365335692,1749605445667,-547.13,0.00016602,2]
[365335693,1749605445676,-450.0,0.00016602,2]
[365335694,1749605445686,-490.0,0.00016602,2]
[365335695,1749605445695,-490.0,0.00016602,2]
[365335696,1749605445704,-450.0,0.00016602,2]
[365335697,1749605445714,-490.0,0.00016602,2]
[365335698,1749605445723,-450.0,0.00016602,2]
[365335699,1749605445732,-450.0,0.00016602,2]
[365335700,1749605445742,-450.0,0.00016602,2]
[365335701,1749605445751,-557.48,0.00016602,2]
[365335702,1749605445760,-450.0,0.00016602,2]
[365335703,1749605445770,-490.0,0.00016602,2]
[365335704,1749605445779,-450.0,0.00016602,2]
[365335705,1749605445788,-490.0,0.00016602,2]
[365335706,1749605445798,-450.0,0.00016602,2]
[365335707,1749605445807,-374.13,0.00016602,2]
[365335708,1749605445817,-490.0,0.00016602,2]
[365335709,1749605445826,-490.0,0.00016602,2]
[365335710,1749605445835,-490.0,0.00016602,2]
[365335711,1749605445844,-490.0,0.00016602,2]
[365335712,1749605445854,-450.0,0.00016602,2]
[365335713,1749605445863,-490.0,0.00016602,2]
[365335714,1749605445872,-490.0,0.00016602,2]
[365335715,1749605445882,-490.0,0.00016602,2]
[365335716,1749605445892,-490.0,0.00016602,2]
[365335717,1749605445901,-450.0,0.00016602,2]
[365335718,1749605445911,-232.89,0.00016602,2]
[365335719,1749605445924,-490.0,0.00016602,2]
[365335720,1749605445935,-490.0,0.00016602,2]
[365335721,1749605445945,-490.0,0.00016602,2]
[365335722,1749605445955,-606.28398895,0.00016602,2]
[365335723,1749605445964,-556.43,0.00016602,2]
[365335724,1749605445974,-490.0,0.00016602,2]
[365335725,1749605445983,-173.4,0.00016602,2]
[365335726,1749605445993,-215.33,0.00016602,2]
[365335727,1749605446004,-490.0,0.00016602,2]
[365335728,1749605446013,-490.0,0.00016602,2]
[365335729,1749605446023,-581.71,0.00016602,2]
[365335730,1749605446033,-490.0,0.00016602,2]
[365335731,1749605446042,-490.0,0.00016602,2]
[365335732,1749605446052,-490.0,0.00016602,2]
[365335733,1749605446061,-490.0,0.00016602,2]
[365335734,1749605446071,-490.0,0.00016602,2]
[365335735,1749605446080,-895.27,0.00016602,2]
[365335736,1749605446089,-490.0,0.00016602,2]
[365335737,1749605446099,-490.0,0.00016602,2]
[365335738,1749605446108,-490.0,0.00016602,2]
[365335739,1749605446117,-490.0,0.00016602,2]
[365335740,1749605446126,-490.0,0.00016602,2]
[365335741,1749605446136,-490.0,0.00016602,2]
[365335742,1749605446145,-490.0,0.00016602,2]
[365335743,1749605446155,-490.0,0.00016602,2]
[365335744,1749605446166,-490.0,0.00016602,2]
[365335745,1749605446176,-1094.07,0.00016602,2]
[365335746,1749605446186,-490.0,0.00016602,2]
[365335747,1749605446195,-490.0,0.00016602,2]
[365335748,1749605446204,-490.0,0.00016602,2]
[365335749,1749605446213,-490.0,0.00016602,2]
[365335750,1749605446222,-695.39,0.00016602,2]
[365335751,1749605446231,-490.0,0.00016602,2]
[365335752,1749605446241,-504.95020482,0.00016602,2]
[365335753,1749605446250,-490.0,0.00016602,2]
[365335754,1749605446259,-490.0,0.00016602,2]
[365335755,1749605446269,-490.0,0.00016602,2]
[365335756,1749605446278,-490.0,0.00016602,2]
[365335757,1749605446287,-454.18214783,0.00016602,2]
[365335758,1749605446297,-434.801451,0.00016602,2]
[365335759,1749605446307,-490.0,0.00016602,2]
[365335760,1749605446316,-490.0,0.00016602,2]
[365335761,1749605446325,-327.16870903,0.00016602,2]
[365335762,1749605446334,-490.0,0.00016602,2]
[365335763,1749605446343,-455.34318999,0.00016602,2]
[365335764,1749605446353,-490.0,0.00016602,2]
[365335765,1749605446362,-461.59406692,0.00016602,2]
[365335766,1749605446371,-490.0,0.00016602,2]
[365335767,1749605446380,-498.6570953,0.00016602,2]
[365335768,1749605446390,-490.0,0.00016602,2]
[365335769,1749605446399,-490.0,0.00016602,2]
[365335770,1749605446409,-490.0,0.00016602,2]
[365335771,1749605446420,-490.0,0.00016602,2]